Cogmind - Beta 13 @@@ ROGUE MODE // 2024.03.23 @ 07:49:38 Player: f_ Result: Destroyed by CA-3XG(R) with Subdweller Laser Performance ------------- Evolutions (0) 0 Regions Visited (3) 600 Robots Destroyed (26) 130 Value Destroyed (603) 603 Prototype IDs (2) 40 Alien Tech Used (0) 0 Bonus (120) 120 TOTAL SCORE: 1493 Bonus ------- Follower Combat Kills 120 Cogmind --------- Core Integrity 0/250 Matter 260/300 Energy 200/200 System Corruption 3% Temperature Cool (6) Movement Walking (190) Ox1 Location -10/Subcaves Parts ------- > --- POWER (1) -------- Subdweller Power Source > --- PROPULSION (2) --- Aluminum Leg Aluminum Leg > --- UTILITY (2) ------ Medium Storage Unit Signal Interpreter > --- WEAPON (2) ------- Subdweller Machine Gun Grenade Launcher > --- INVENTORY (10) --- Heat Sink Disposable Heat Sink Subdweller Optics Sensor Array Targeting Computer Beam Cannon Beam Cannon Beam Cannon Datajack Peak State ------------ > --- POWER ------------ Subdweller Power Source > --- PROPULSION ------- Aluminum Leg Aluminum Leg > --- UTILITY ---------- Medium Storage Unit Signal Interpreter > --- WEAPON ----------- Beam Cannon Subdweller Machine Gun > --- INVENTORY -------- Heat Sink Disposable Heat Sink Subdweller Optics Sensor Array Targeting Computer Beam Cannon Beam Cannon Grenade Launcher Datajack [Rating: 10] Favorites ----------- Power Ion Engine Engine Ion Engine Propulsion Aluminum Leg Leg Aluminum Leg Utility Medium Storage Unit Device Heat Sink Storage Medium Storage Unit Processor Signal Interpreter Protection Weapon Shielding Weapon Beam Cannon Energy Gun EM Pulse Gun Energy Cannon Beam Cannon Ballistic Gun Assault Rifle Launcher Grenade Launcher Build | -11 -10 -10 -10 ------- Run | Yrd Mat Min Sub Slots Evolved . | . . . . Power . | . . . . Propulsion . | . . . . Utility . | . . . . Weapon . | . . . . Parts Attached 33 | 6 15 3 9 Power 4 | 1 1 1 1 Engine 4 | 1 1 1 1 Core . | . . . . Reactor . | . . . . Propulsion 7 | 2 3 1 1 Treads . | . . . . Leg 7 | 2 3 1 1 Wheel . | . . . . Hover . | . . . . Flight . | . . . . Utility 9 | 1 5 . 3 Device 4 | . 2 . 2 Storage 3 | 1 1 . 1 Processor 1 | . 1 . . Hackware . | . . . . Protection 1 | . 1 . . Artifact . | . . . . Weapon 13 | 2 6 1 4 Energy Gun 2 | . 2 . . Energy Cannon 4 | . 2 1 1 Ballistic Gun 5 | 2 2 . 1 Ballistic Cannon . | . . . . Launcher 2 | . . . 2 Special Weapon . | . . . . Impact Weapon . | . . . . Slashing Weapon . | . . . . Piercing Weapon . | . . . . Special Melee Weapon . | . . . . Unidentified Prototypes . | . . . . Parts Lost 1 | . . 1 . Power . | . . . . Propulsion . | . . . . Utility . | . . . . Weapon 1 | . . 1 . Highest Loss Streak 1 | . . 1 . To Critical Strikes . | . . . . Average Slot Usage (%) 97 | . 93 99 99 Engine 13 | . 13 14 14 Leg 28 | . 28 28 28 Storage 13 | . 14 14 13 Processor 8 | . 2 14 14 Protection 3 | . 7 . . Energy Gun 4 | . 5 4 . Energy Cannon 15 | . 6 23 21 Ballistic Gun 6 | . 14 . 6 Naked Turns . | . . . . Heaviest Build 22 | 13 22 21 22 Greatest Support 20 | 20 20 20 20 Greatest Overweight (x) 1 | . 1 1 1 Average Overweight (x) . | . . . . Largest Inventory Capacity 10 | 8 10 10 10 Average Capacity 9 | 6 9 10 9 Most Carried 10 | 2 10 10 10 Average Carried 7 | 1 6 9 9 Final Capacity 10 | 8 10 10 10 Final Carried 10 | 2 10 10 9 Class Distribution -------------------- 77% | Mutant 22% | Scavenger-Mutant Dominant Class ---------------- Mutant | -10/Materials Mutant | -10/Mines Scavenger-Mutant | -10/Subcaves Resources | -11 -10 -10 -10 ----------- Run | Yrd Mat Min Sub Matter Collected 903 | 203 485 117 98 Remotely . | . . . . Salvage Created 903 | . 542 251 110 Parts 57 | . 40 9 8 Haulers Intercepted 2 | . 2 . . Recyclers Shooed 5 | . 4 1 . Parts Field Recycled . | . . . . Retrieved Matter . | . . . . Parts Self-Destructed . | . . . . Prevented . | . . . . Kills | -11 -10 -10 -10 ------- Run | Yrd Mat Min Sub Combat Hostiles Destroyed 15 | . 7 5 3 Guns 9 | . 7 2 . Cannons 3 | . . 3 . AOE 2 | . . . 2 Classes Destroyed 8 | . 5 2 1 Worker 2 | . 2 . . Hauler 2 | . 2 . . Recycler 1 | . . 1 . Operator 3 | . 3 . . Watcher 3 | . 3 . . Swarmer 3 | . . 3 . Grunt 9 | . 7 2 . Subdweller 3 | . . . 3 Best Kill Streak 3 | . 3 2 3 Combat Bots Only 3 | . 2 2 3 Max Kills in Single Turn 2 | . 1 1 2 Gunslinging . | . . . . Exploded 2 | . . . 2 Melee . | . . . . Uniques/NPCs Destroyed . | . . . . Combat | -11 -10 -10 -10 -------- Run | Yrd Mat Min Sub Hostile Shots Fired 87 | . 44 36 7 Missed 19 | . 11 6 2 Damage Taken 971 | . 416 416 139 Core 267 | . 64 132 71 Absorbed by Shields . | . . . . Redirected to Shielding 13 | . 13 . . Regen/Repaired (Parts) 56 | . 56 . . Core Remaining (%) 100 | 100 . . . Volleys Fired 110 | . 79 24 7 Largest 2 | . 2 2 2 Hottest 120 | . 120 120 120 Shots Fired 192 | . 137 45 10 Gun 145 | . 130 15 . Cannon 43 | . 7 30 6 Launcher 4 | . . . 4 Special . | . . . . Kinetic 100 | . 100 . . Thermal 72 | . 36 30 6 Explosive 4 | . . . 4 Electromagnetic 16 | . 1 15 . Robot Hit Streak 12 | . 10 12 3 Robot Miss Streak 5 | . 5 4 1 Penetration Max . | . . . . Secondary Targets 1 | . 1 . . Max Gunslinging Chain 1 | . 1 . . Shots Hit Robots 108 | . 76 27 5 Core Hits 39 | . 30 5 4 Critical Kills 1 | . . . 1 Critical Parts Destroyed . | . . . . Critical Strikes 1 | . . . 1 Meltdown 1 | . . . 1 Melee Attacks . | . . . . Impact . | . . . . Slashing . | . . . . Piercing . | . . . . Sneak Attacks . | . . . . Combat Hostiles . | . . . . Follow-up Attacks . | . . . . Damage Inflicted 1767 | . 952 470 345 Guns 1022 | . 864 158 . Cannons 418 | . 88 260 70 Explosions 327 | . . 52 275 Melee . | . . . . Ramming . | . . . . Kinetic 648 | . 648 . . Thermal 686 | . 304 312 70 Explosive 275 | . . . 275 Electromagnetic 158 | . . 158 . Impact . | . . . . Slashing . | . . . . Piercing . | . . . . Highest Corruption 3 | . 3 3 3 Average Corruption 2 | . 2 3 3 Corruption Purged . | . . . . Corruption Blocked . | . . . . Effects 50 | . 20 28 2 Message Errors 12 | . 3 9 . Matter Fused 10 | . 4 6 . Heat Flow Errors 11 | . 7 4 . Energy Discharges 3 | . 1 1 1 Data Loss (minor) 8 | . 3 5 . Data Loss (major) 5 | . 2 2 1 Weapon Failures 1 | . . 1 . Overload Shots . | . . . . Overflow Damage 41 | . . 41 . Projectiles 41 | . . 41 . Explosions . | . . . . Melee . | . . . . Knockbacks . | . . . . Impact . | . . . . Kinetic . | . . . . Secondary . | . . . . Self-Inflicted Damage 80 | . . 53 27 Shots 3 | . . 1 2 Rammed . | . . . . Targets Rammed . | . . . . Kicked . | . . . . Crushed . | . . . . Highest Temperature 306 | . 227 306 . Average Temperature 93 | . 84 102 . Received Heat Transfer 417 | . 237 156 24 Siege Activations . | . . . . Robots Corrupted . | . . . . Combat Hostiles . | . . . . Parts Fried . | . . . . Impact Corruptions . | . . . . Robots Melted 1 | . . . 1 Combat Hostiles 1 | . . . 1 Parts Melted 6 | . 1 3 2 Heat Transferred 1438 | . 685 605 148 Parts Sabotaged . | . . . . Parts Stolen . | . . . . Parts Stripped . | . . . . Power Chain Reactions 1 | . . 1 . Alert | -11 -10 -10 -10 ------- Run | Yrd Mat Min Sub Peak Influence 209 | . 209 150 . Initial . | . . . . Average 61 | . 74 51 . Maximum Alert Level 1 | . 1 . . Low Security (%) 98 | 100 97 100 . Level 1 1 | . 2 . . Level 2 . | . . . . Level 3 . | . . . . Level 4 . | . . . . Level 5 . | . . . . High Security . | . . . . Max Security . | . . . . Squads Dispatched 2 | . 2 . . Investigation . | . . . . Extermination . | . . . . Reinforcement 2 | . 2 . . Assault . | . . . . Garrison . | . . . . Intercept . | . . . . Searches Triggered . | . . . . Construction Impeded . | . . . . Haulers Reinforced . | . . . . Active Scanning Responses . | . . . . Cargo Convoy Interrupts . | . . . . Stealth | -11 -10 -10 -10 --------- Run | Yrd Mat Min Sub Distress Signals 1 | . 1 . . Communications Jammed . | . . . . Distress Signals . | . . . . Times Spotted 37 | . 21 11 5 Peak Tracking Total 5 | . 5 3 2 Tactical Retreats 2 | . . 2 . Traps | -11 -10 -10 -10 ------- Run | Yrd Mat Min Sub Traps Triggered 4 | . 4 . . Indirectly . | . . . . Trap Hack Attempts . | . . . . Triggered . | . . . . Disarmed . | . . . . Reprogrammed . | . . . . Reused . | . . . . Traps Extracted . | . . . . Installed . | . . . . Triggered . | . . . . Machines | -11 -10 -10 -10 ---------- Run | Yrd Mat Min Sub Machines Disabled . | . . . . Max in Single Turn . | . . . . Machines Repaired . | . . . . Machines Dismantled . | . . . . Machines Sabotaged . | . . . . Overloaded Fab Kills . | . . . . Hacking | -11 -10 -10 -10 --------- Run | Yrd Mat Min Sub Machines Accessed 5 | . 5 . . Terminals 4 | . 4 . . Fabricators . | . . . . Repair Stations 1 | . 1 . . Recycling Units . | . . . . Scanalyzers . | . . . . Garrison Access . | . . . . Total Hacks 13 | . 13 . . Successful 10 | . 10 . . Failed 3 | . 3 . . Catastrophic . | . . . . Database Lockouts . | . . . . Manual . | . . . . Terminals 10 | . 10 . . Fabricators . | . . . . Repair Stations 3 | . 3 . . Recycling Units . | . . . . Scanalyzers . | . . . . Garrison Access . | . . . . Terminal Hacks 8 | . 8 . . Prototype ID Bank 1 | . 1 . . Branch Access Points 1 | . 1 . . Alert Level 1 | . 1 . . Dispatch Records 2 | . 2 . . Reinforcement Status 1 | . 1 . . Hauler Manifests 1 | . 1 . . Registered Components 1 | . 1 . . Fabricator Hacks . | . . . . Repair Station Hacks 2 | . 2 . . Scan Component 1 | . 1 . . Repair 1 | . 1 . . Recycling Unit Hacks . | . . . . Scanalyzer . | . . . . Garrison Access Hacks . | . . . . Unauthorized Hacks . | . . . . Terminals . | . . . . Fabricators . | . . . . Repair Stations . | . . . . Recycling Units . | . . . . Scanalyzers . | . . . . Garrison Access . | . . . . Data Cores Recovered 1 | . 1 . . Used . | . . . . Hacking Detections 1 | . 1 . . Full Trace Events . | . . . . Feedback Events . | . . . . Feedback Blocked . | . . . . Robot Schematics Acquired . | . . . . Robots Built . | . . . . Authchips . | . . . . Time . | . . . . Total Robot Build Rating . | . . . . Part Schematics Acquired . | . . . . Parts Built . | . . . . Authchips . | . . . . Time . | . . . . Total Part Build Rating . | . . . . Parts Repaired 1 | . 1 . . Time 26 | . 26 . . Parts Recycled . | . . . . Recycled Matter . | . . . . Retrieved Matter . | . . . . Retrieved Components . | . . . . Parts Scanalyzed . | . . . . Part Schematics Acquired . | . . . . Parts Damaged . | . . . . Bothacking | -11 -10 -10 -10 ------------ Run | Yrd Mat Min Sub Used RIF Installer . | . . . . Robots Hacked . | . . . . Non-combat . | . . . . Combat . | . . . . Robot Hacks Applied . | . . . . Relay Couplers Released . | . . . . Fabnet Peak Effective % . | . . . . Robots Rewired . | . . . . Allies Hacked . | . . . . Hacks Repelled . | . . . . Allies | -11 -10 -10 -10 -------- Run | Yrd Mat Min Sub Total Allies 3 | . . 3 . Largest Group 3 | . . 3 2 Highest-Rated Group 40 | . . 40 24 Highest-Rated Ally 16 | . . 16 16 Total Orders . | . . . . Ally Attacks 33 | . . 22 11 Total Damage 458 | . . 287 171 Kills 5 | . . 4 1 Allies Corrupted . | . . . . Allies Melted . | . . . . Intel | -11 -10 -10 -10 ------- Run | Yrd Mat Min Sub Robot Analysis Total . | . . . . Derelict Logs Recovered 1 | . . 1 . Drone Launches . | . . . . Drone Recoveries . | . . . . Exploration | -11 -10 -10 -10 ------------- Run | Yrd Mat Min Sub Turns Passed 2813 | 65 1233 1222 293 Spaces Moved 1474 | 47 649 645 133 Core 6 | 6 . . . Treads . | . . . . Legs 1468 | 41 649 645 133 Wheels . | . . . . Hover . | . . . . Flight . | . . . . Fastest Speed 50 | 50 120 120 120 Average Speed 149 | 111 130 165 186 Slowest Speed 190 | 120 190 190 190 Overloaded Moves . | . . . . Propulsion Burnouts . | . . . . Robots Hopped . | . . . . Cave-ins Triggered . | . . . . Exploration Rate (%) 48 | 3 76 99 16 Regions Visited 3 Branch Regions 2 Pre-discovered Areas . | . . . . Known Exits Taken 2 | . 1 1 . Unknown Exits Taken 1 | 1 . . . Scrap Searched 1 | . . 1 . Spaces Dug 5 | . . . 5 Terrain Destroyed 26 | . . 5 21 Melee . | . . . . Projectile . | . . . . AOE 26 | . . 5 21 Terrain Rammed . | . . . . Walls Destroyed . | . . . . Machines Disabled . | . . . . Actions | -11 -10 -10 -10 --------- Run | Yrd Mat Min Sub Total 1886 | 60 901 758 167 Wait 217 | . 127 84 6 Move 1471 | 46 648 644 133 Hop . | . . . . Pick Up 38 | 8 22 1 7 Fast Attach 1 | . . . 1 Attach 16 | 6 8 1 1 Detach 1 | . 1 . . Swap 16 | . 7 2 7 Drop 16 | . 9 2 5 Fire 110 | . 79 24 7 Melee . | . . . . Ram . | . . . . Kick . | . . . . Crush . | . . . . Escape Stasis . | . . . . Rewire . | . . . . Trap . | . . . . Miscellaneous . | . . . . Route ------- -11/Scrapyard -10/Materials (discovered 2 exits: *Mat / *Min) -10/Mines (discovered 3 exits: *Mat x2 / *Sub) -10/Subcaves History --------- Turn | Location | Event 10 | -11/Scrapyard | Discovered new exit (range 15) 66 | -11/Scrapyard | Entered Materials 309 | -10/Materials | Build established: Mutant 335 | -10/Materials | Discovered new exit (range 16) 711 | -10/Materials | Identified exit to Mines 918 | -10/Materials | Repaired Ion Engine 1049 | -10/Materials | Discovered new exit (range 10) 1072 | -10/Materials | Identified exit to Materials 1299 | -10/Materials | Entered Mines 1378 | -10/Mines | Core integrity fell below 50% 1747 | -10/Mines | Assisted by bots powering up and referring to "LRC-V3" 1980 | -10/Mines | Discovered exit to Materials (range 8) 2022 | -10/Mines | Discovered exit to Materials (range 10) 2194 | -10/Mines | Learned Materials terminal intel 2494 | -10/Mines | Discovered new exit (range 14) 2510 | -10/Mines | Build established: Scavenger-Mutant 2519 | -10/Mines | Identified exit to Subcaves 2521 | -10/Mines | Entered Subcaves 2521 | -10/Subcaves | Accompanied by 2 allies 2631 | -10/Subcaves | Ambushed by Subdwellers from Twisted Machinery 2805 | -10/Subcaves | Core integrity fell below 20% 2814 | -10/Subcaves | Destroyed by CA-3XG(R) with Subdweller Laser Last Messages --------------- 02650_ Acquired 30 matter. 02655_ Dropped Lgt. Ion Engine. 02656_ Acquired Sub. Power Source. 02658_ Dropped Ion Engine. 02659_ Acquired 7 matter. 02663_ Acquired Unknown Device. 02664_ Dropped Med. Storage Unit. 02664_ Identified Sub. Optics. 02665_ Dropped Sub. Optics. 02668_ Acquired Med. Storage Unit. 02670_ Dropped Aluminum Leg. 02673_ Acquired Heat Sink. 02678_ Acquired Datajack. 02681_ Acquired Sub. Machine Gun. 02686_ Acquired 16 matter. 02688_ Acquired 15 matter. 02695_ Acquired Sub. Optics. 02696_ Acquired 22 matter. 02700_ Acquired Disposable Heat Sink. 02776_ System corrupted: Energy discharge (-40). Map ----- +----------------------------------------------------+ | ?????????????????????????????????????????????????? | | ?????????????????????????????????????????????????? | | ?????????????????????????????????????????????????? | | ?????????????????????????????????????????????????? | | ?????????????????????????????????????????????????? | | ?????????????????????????????????????????????????? | | ?????????????????????????????????????????????????? | | ?????????????????????????????????????????????????? | | ??????? ???????????# ??###??????????????????????? | | ??????? ??????#### ?? ##?????????????????????? | | ???????# ???## ?? #?????????????????????? | | ???????# ??# ??? #?????????????????????? | | ???????? ### ???? #?????????????????????? | | ????????? ???? #?????????????????????? | | ??????????? ????? ##????????????????????? | | ???????????? ?????? #????????????????????? | | ?????????????? ######## #????????????????????? | | ?# ???????##### ## # ##????????????????????? | | #?# ?### ##???????????????????? | | ##??? # ###?????????????????? | | ##???????# ## # # #?????????????????? | | #???????# ###### #####?????????????????? | | #?# ???### ##????## ##?????????????????????? | | ??# ## ##?????# #??????????????????????? | | #???# ##????# #??????????????????????? | | ##??# ##???# @#??????????????????????? | | #??## #### #???# ?????????????????????? | | #???###### ##??# ???????????????????? | | #???## ## ###???#### ?????????????????? | | #???## ##??????? R #????????????????? | | #???# #???????# R #???????????????? | | ##### #???????# #??????????????? | | #??????? #??????????????? | | #### #??????? ##??????????????? | | % ##??# ##??????? ### ##???????????????? | | #######???######???????? #??? ##????????????????? | | ????????????????????????#???? #?????????????????? | | ?????????????????????????????? #?????????????????? | | ?????????????????????????????? ?????????????????? | | ?????????????????????????????????????????????????? | | ?????????????????????????????????????????????????? | | ?????????????????????????????????????????????????? | | ?????????????????????????????????????????????????? | | ?????????????????????????????????????????????????? | | ?????????????????????????????????????????????????? | | ?????????????????????????????????????????????????? | | ?????????????????????????????????????????????????? | | ?????????????????????????????????????????????????? | | ?????????????????????????????????????????????????? | | ?????????????????????????????????????????????????? | +----------------------------------------------------+ Best States ------------- Heat Dissipation 35 Energy Generation 15 Energy Capacity 250 Matter Stores 300 Matter Capacity 300 Sight Range 16 Robot Scan Range 14 Terrain Scan Density 10 Weapon Shielding 33 Evasion (%) 55 Item Schematics ----------------- None Robot Schematics ------------------ None Fabricated ------------ Nothing Alien Tech Used ----------------- None Achievements -------------- None Challenges ------------ None Game ------ Seed CarbideLargeDissipator Manual? 0 Play Time 00:23:46 Cumulative 37.9 hours Start 2024.03.23 @ 07:23:54 End 2024.03.23 @ 07:49:38 Sessions 1 Manual Loads 0 Difficulty Rogue Special Mode None Game No. 25 Rogue 23 Adventurer 0 Explorer 2 Win Type - Total 0 Types 0/0/0/0/0/0/0/0/0 Lore% 15 Gallery% 25 Achievement% 18 Wizard Run 0 Options --------- Layout 1 ASCII 0 Keyboard 0 Movement Mouse Keybinds 0 Fullscreen 2 Font 48/Tamsyn Map View 50x35 Zoom Use 0% Tactical HUD 1 Map Filters NONE Filters NONE Steam 1 RUN: 4fa9bf2b-9c65-4caf-81b0-795108658089